Cogmind - Beta 13 @@@ ROGUE MODE // 2024.05.17 @ 15:37:06 Player: mewcatx Result: Destroyed by D-53 Grenadier with Mini Grenade Launcher Performance ------------- Evolutions (0) 0 Regions Visited (0) 0 Robots Destroyed (0) 0 Value Destroyed (0) 0 Prototype IDs (0) 0 Alien Tech Used (0) 0 Bonus (0) 0 TOTAL SCORE: 0 Bonus ------- None Cogmind --------- Core Integrity 0/250 Matter 146/300 Energy 99/100 System Corruption 0% Temperature Cool (0) Movement Core (50) Location -11/Scrapyard Parts ------- > --- POWER (1) -------- (None) > --- PROPULSION (2) --- (None) > --- UTILITY (2) ------ (None) > --- WEAPON (2) ------- (None) > --- INVENTORY (5) ---- Ion Engine Wheel Compact Wheel Light Assault Rifle Peak State ------------ > --- POWER ------------ Ion Engine > --- PROPULSION ------- Light Treads Light Treads > --- UTILITY ---------- Small Storage Unit > --- WEAPON ----------- Light Assault Rifle Light Assault Rifle > --- INVENTORY -------- (None) [Rating: 6] Favorites ----------- Power Ion Engine Engine Ion Engine Propulsion Light Treads Treads Light Treads Utility Small Storage Unit Storage Small Storage Unit Weapon Light Assault Rifle Energy Gun EM Pulse Gun Ballistic Gun Light Assault Rifle Build | -11 ------- Run | Yrd Slots Evolved . | . Power . | . Propulsion . | . Utility . | . Weapon . | . Parts Attached 7 | 7 Power 1 | 1 Engine 1 | 1 Core . | . Reactor . | . Propulsion 2 | 2 Treads 2 | 2 Leg . | . Wheel . | . Hover . | . Flight . | . Utility 1 | 1 Device . | . Storage 1 | 1 Processor . | . Hackware . | . Protection . | . Artifact . | . Weapon 3 | 3 Energy Gun 1 | 1 Energy Cannon . | . Ballistic Gun 2 | 2 Ballistic Cannon . | . Launcher . | . Special Weapon . | . Impact Weapon . | . Slashing Weapon . | . Piercing Weapon . | . Special Melee Weapon . | . Unidentified Prototypes . | . Parts Lost 2 | 2 Power . | . Propulsion 1 | 1 Utility . | . Weapon 1 | 1 Highest Loss Streak 2 | 2 To Critical Strikes . | . Average Slot Usage (%) . | . Naked Turns . | . Heaviest Build 13 | 13 Greatest Support 40 | 40 Greatest Overweight (x) . | . Average Overweight (x) . | . Largest Inventory Capacity 8 | 8 Average Capacity 7 | 7 Most Carried 4 | 4 Average Carried 3 | 3 Final Capacity 5 | 5 Final Carried 4 | 4 Class Distribution -------------------- None Dominant Class ---------------- None Resources | -11 ----------- Run | Yrd Matter Collected 110 | 110 Remotely . | . Salvage Created . | . Parts . | . Haulers Intercepted . | . Recyclers Shooed . | . Parts Field Recycled . | . Retrieved Matter . | . Parts Self-Destructed . | . Prevented . | . Kills | -11 ------- Run | Yrd Combat Hostiles Destroyed . | . Classes Destroyed . | . Best Kill Streak . | . Combat Bots Only . | . Max Kills in Single Turn . | . Gunslinging . | . Exploded . | . Melee . | . Uniques/NPCs Destroyed . | . Combat | -11 -------- Run | Yrd Hostile Shots Fired 17 | 17 Missed . | . Damage Taken 658 | 658 Core 264 | 264 Absorbed by Shields . | . Core Remaining (%) . | . Volleys Fired 4 | 4 Largest 2 | 2 Hottest 60 | 60 Shots Fired 8 | 8 Gun 8 | 8 Cannon . | . Launcher . | . Special . | . Kinetic 4 | 4 Thermal . | . Explosive . | . Electromagnetic 4 | 4 Robot Hit Streak 3 | 3 Robot Miss Streak 1 | 1 Penetration Max . | . Secondary Targets . | . Shots Hit Robots 6 | 6 Core Hits 1 | 1 Critical Kills . | . Critical Parts Destroyed . | . Critical Strikes 1 | 1 Destroy 1 | 1 Melee Attacks . | . Impact . | . Slashing . | . Piercing . | . Sneak Attacks . | . Combat Hostiles . | . Follow-up Attacks . | . Damage Inflicted 56 | 56 Guns 56 | 56 Cannons . | . Explosions . | . Melee . | . Ramming . | . Kinetic 23 | 23 Thermal . | . Explosive . | . Electromagnetic 33 | 33 Impact . | . Slashing . | . Piercing . | . Highest Corruption . | . Average Corruption . | . Corruption Purged . | . Corruption Blocked . | . Overload Shots . | . Overflow Damage . | . Projectiles . | . Explosions . | . Melee . | . Knockbacks . | . Impact . | . Kinetic . | . Secondary . | . Self-Inflicted Damage . | . Shots . | . Rammed . | . Targets Rammed . | . Kicked . | . Crushed . | . Highest Temperature 20 | 20 Average Temperature 15 | 15 Received Heat Transfer . | . Siege Activations . | . Robots Corrupted . | . Combat Hostiles . | . Parts Fried . | . Impact Corruptions . | . Robots Melted . | . Combat Hostiles . | . Parts Melted . | . Heat Transferred . | . Parts Sabotaged . | . Parts Stolen . | . Parts Stripped . | . Power Chain Reactions . | . Alert | -11 ------- Run | Yrd Peak Influence . | . Initial . | . Average . | . Maximum Alert Level . | . Low Security (%) 100 | 100 Level 1 . | . Level 2 . | . Level 3 . | . Level 4 . | . Level 5 . | . High Security . | . Max Security . | . Squads Dispatched . | . Investigation . | . Extermination . | . Reinforcement . | . Assault . | . Garrison . | . Intercept . | . Searches Triggered . | . Construction Impeded . | . Haulers Reinforced . | . Active Scanning Responses . | . Cargo Convoy Interrupts . | . Stealth | -11 --------- Run | Yrd Distress Signals . | . Communications Jammed . | . Distress Signals . | . Times Spotted 2 | 2 Peak Tracking Total 2 | 2 Tactical Retreats . | . Traps | -11 ------- Run | Yrd Traps Triggered . | . Indirectly . | . Trap Hack Attempts . | . Triggered . | . Disarmed . | . Reprogrammed . | . Reused . | . Traps Extracted . | . Installed . | . Triggered . | . Machines | -11 ---------- Run | Yrd Machines Disabled . | . Max in Single Turn . | . Machines Repaired . | . Machines Dismantled . | . Machines Sabotaged . | . Overloaded Fab Kills . | . Hacking | -11 --------- Run | Yrd Machines Accessed . | . Terminals . | . Fabricators . | . Repair Stations . | . Recycling Units . | . Scanalyzers . | . Garrison Access . | . Total Hacks . | . Successful . | . Failed . | . Catastrophic . | . Database Lockouts . | . Manual . | . Terminals . | . Fabricators . | . Repair Stations . | . Recycling Units . | . Scanalyzers . | . Garrison Access . | . Terminal Hacks . | . Fabricator Hacks . | . Repair Station Hacks . | . Recycling Unit Hacks . | . Scanalyzer . | . Garrison Access Hacks . | . Unauthorized Hacks . | . Terminals . | . Fabricators . | . Repair Stations . | . Recycling Units . | . Scanalyzers . | . Garrison Access . | . Data Cores Recovered . | . Used . | . Hacking Detections . | . Full Trace Events . | . Feedback Events . | . Feedback Blocked . | . Robot Schematics Acquired . | . Robots Built . | . Authchips . | . Time . | . Total Robot Build Rating . | . Part Schematics Acquired . | . Parts Built . | . Authchips . | . Time . | . Total Part Build Rating . | . Parts Repaired . | . Time . | . Parts Recycled . | . Recycled Matter . | . Retrieved Matter . | . Retrieved Components . | . Parts Scanalyzed . | . Part Schematics Acquired . | . Parts Damaged . | . Bothacking | -11 ------------ Run | Yrd Used RIF Installer . | . Robots Hacked . | . Non-combat . | . Combat . | . Robot Hacks Applied . | . Relay Couplers Released . | . Fabnet Peak Effective % . | . Robots Rewired . | . Allies Hacked . | . Hacks Repelled . | . Allies | -11 -------- Run | Yrd Total Allies . | . Largest Group . | . Highest-Rated Group . | . Highest-Rated Ally . | . Total Orders . | . Ally Attacks . | . Total Damage . | . Kills . | . Allies Corrupted . | . Allies Melted . | . Intel | -11 ------- Run | Yrd Robot Analysis Total . | . Derelict Logs Recovered . | . Drone Launches . | . Drone Recoveries . | . Exploration | -11 ------------- Run | Yrd Turns Passed 2068 | 2068 Spaces Moved 338 | 338 Core 8 | 8 Treads 330 | 330 Legs . | . Wheels . | . Hover . | . Flight . | . Fastest Speed 50 | 50 Average Speed 157 | 157 Slowest Speed 160 | 160 Overloaded Moves . | . Propulsion Burnouts . | . Robots Hopped . | . Cave-ins Triggered . | . Exploration Rate (%) 38 | 38 Regions Visited . Branch Regions . Pre-discovered Areas . | . Known Exits Taken . | . Unknown Exits Taken . | . Scrap Searched . | . Spaces Dug . | . Terrain Destroyed . | . Melee . | . Projectile . | . AOE . | . Terrain Rammed . | . Walls Destroyed . | . Machines Disabled . | . Actions | -11 --------- Run | Yrd Total 1863 | 1863 Wait 1510 | 1510 Move 338 | 338 Hop . | . Pick Up 4 | 4 Fast Attach 6 | 6 Attach . | . Detach . | . Swap 1 | 1 Drop . | . Fire 4 | 4 Melee . | . Ram . | . Kick . | . Crush . | . Escape Stasis . | . Rewire . | . Trap . | . Miscellaneous . | . Route ------- -11/Scrapyard (discovered 1 exit: [*Mat]) History --------- Turn | Location | Event 9 | -11/Scrapyard | Discovered new exit (range 15) 2052 | -11/Scrapyard | Assembled infested the area 2059 | -11/Scrapyard | Core integrity fell below 50% 2063 | -11/Scrapyard | Core integrity fell below 20% 2067 | -11/Scrapyard | Released all parts (4) 2069 | -11/Scrapyard | Destroyed by D-53 Grenadier with Mini Grenade Launcher Last Messages --------------- 00882_ K-01 Serf collects debris. 00883_ T-07 Excavator is excavating. 00887_ K-01 Serf collects debris. 00890_ T-07 Excavator is excavating. 01799_ K-01 Serf collects debris. 01881_ T-07 Excavator is excavating. 02052_ ALERT: Infestation in the scrapyard, dispatching Demolisher response squad. 02052_ C-30 ARC bursts open, deploying its payload. 02052_ D-53 Grenadier unfolds itself. 02058_ D-53 Grenadier suffers critical hit (Destroy). 02066_ EM Pulse Gun destroyed. 02066_ Lgt. Treads destroyed. 02067_ Released Ion Engine. 02067_ Released Sml. Storage Unit. 02067_ Released Lgt. Treads. 02067_ Released Lgt. Assault Rifle. 02069_ The unstable cave ceiling collapses. Map ----- +----------------------------------------------------+ | ?????????????????????????????????????????????????? | | ?????????????????????????????????????????????????? | | ?????????????????????????????????????????????????? | | ?????????????????????????????????????????????????? | | ?????????????????????????????????????????????????? | | ?????????????????????????????????????????????????? | | ?????????????????????????????????????????????????? | | ?????????????????????????????????????????????????? | | ?????????????????????????????????????????????????? | | ?????????????????????????????????????????????????? | | ????????????????????????? ??????????????????????? | | ????????????????????????? ??????????????????????? | | ????????????????????????? ??????????????????????? | | ????????????????????????? #?????????????????????? | | ????????????????????????? #?????????????????????? | | ????????????????????????? #?????????????????????? | | ????????????????????????? #?????????????????????? | | ????????????????????????# #?????????????????????? | | ???????????????????????? k#?#???????????????????? | | ########???????????????? # ???????????????????? | | ##???????????????# # ????????????????????? | | #???????????????#r ?????????????????????? | | #???????????????# #?????????????????????? | | #???????????????# #?????????????????????? | | #????????????#### ####??????????????????? | | ##########??## % @ #??????????????????? | | ? # #?## #??????????????????? | | ??? # ### ##### #???????????? | | ##### ### = ## #???????????? | | = = d #???????????? | | !*[ d % ##### #???????????? | | ##### ### ## < #??????#???????????? | | ## ## % #??????????????????? | | ## ### ##??????????????????? | | ##### ####?## # ##???????????????????? | | #???# ###############????????????????????? | | #???# # #??????????????????????????? | | #???# #??????????????????????????? | | #???# # #??????????????????????????? | | #???# ###########????????????????????????? | | ########???# # #????????????????????????? | | ???????????# # #????????????????????????? | | ?########### # #????????????????????????? | | ?# # # #????????????????????????? | | ?# #????????????????????????? | | ?# # # #????????????????????????? | | ?# # # #????????????????????????? | | ?# # # #????????????????????????? | | ?# # ###########????????????????????????? | | ?# # # ##?????????????????????????? | +----------------------------------------------------+ Best States ------------- Heat Dissipation 25 Energy Generation 10 Energy Capacity 250 Matter Stores 160 Matter Capacity 300 Sight Range 16 Terrain Scan Density 10 Evasion (%) 40 Recoil Reduction 2 Item Schematics ----------------- None Robot Schematics ------------------ None Fabricated ------------ Nothing Alien Tech Used ----------------- None Achievements -------------- None Challenges ------------ None Game ------ Seed SmartbombRiotWeb Manual? 0 Play Time 00:05:56 Cumulative 30.8 hours Start 2024.05.17 @ 15:34:06 End 2024.05.17 @ 15:37:06 Sessions 0 Manual Loads 0 Difficulty Rogue Special Mode None Game No. 22 Rogue 21 Adventurer 1 Explorer 0 Win Type - Total 1 Types 1/0/0/0/0/0/0/0/0 Lore% 30 Gallery% 38 Achievement% 29 Wizard Run 0 Options --------- Layout 1 ASCII 0 Keyboard 0 Movement Arrows Keybinds 0 Fullscreen 1 Font 36/Proggy Map View 50x40 Zoom Use 0% Tactical HUD 1 Map Filters NONE Filters NONE Steam 0 RUN: 179f045d-53e0-4149-9001-e1e4ae6d2e03